[Event "European Union U14-ch 2024"]
[Site "Roznov pod Radhostem"]
[Date "2024.08.05"]
[Round "1.1"]
[White "Duchatel, Maxime"]
[Black "Bocquenet-Drouode, Hugo"]
[Result "0-1"]
[ECO "B21"]
[WhiteElo "1682"]
[BlackElo "2025"]
[Annotator "NA RC"]
[PlyCount "50"]
[EventDate "2024.08.02"]
[EventType "swiss"]
[EventCountry "CZE"]
[SourceTitle "playchess.com"]
[Source "ChessBase"]
[SourceQuality "1"]
[TimeControl "5400+30"]

1. e4 {[%emt 0:00:10]} c5 {[%emt 0:00:06]} 2. d4 {[%emt 0:00:08]} cxd4 {[%emt 0:00:06]} 3. c3 {[%emt 0:00:06]} dxc3 {[%emt 0:00:04]} 4. Nxc3 {[%emt 0:00:12]} Nc6 {[%emt 0:00:04]} 5. Nf3 {[%emt 0:00:13]} e6 {[%emt 0:00:20]} 6. Bc4 {[%emt 0:00:10]} a6 {[%emt 0:00:12]} 7. O-O {[%emt 0:00:25]} Nge7 {[%emt 0:00:44]} 8. Qe2 {[%emt 0:00:49]} b5 {[%emt 0:02:17]} 9. Bb3 {[%emt 0:01:10]} Bb7 {[%emt 0:00:37]} 10. Rd1 {[%emt 0:02:07]} Ng6 {[%emt 0:04:53]} 11. Be3 {[%emt 0:11:15]} Na5 {[%emt 0:06:44]} 12. Bc2 {[%emt 0:04:01]} Nc4 {[%emt 0:04:08]} 13. b3 {[%emt 0:02:42]} Nxe3 {[%emt 0:00:45]} 14. Qxe3 {[%emt 0:00:07]} Rc8 {[%emt 0:00:44]} 15. Rac1 {[%emt 0:09:23]} Ba3 {[%emt 0:01:27]} 16. Ne2 {[%emt 0:05:40]} Bxc1 {[%emt 0:00:21]} 17. Qxc1 {[%emt 0:00:06]} Bxe4 {[%emt 0:01:02]} 18. Rd2 {[%emt 0:04:02]} Bxf3 {[%emt 0:01:05]} 19. gxf3 {[%emt 0:00:15]} Qg5+ {[%emt 0:00:11]} 20. Ng3 {[%emt 0:00:27]} Nh4 {[%emt 0:00:17]} 21. Rd1 {[%emt 0:00:56]} Nxf3+ {[%emt 0:00:13]} 22. Kg2 {[%emt 0:01:44]} Qxc1 {[%emt 0:00:09]} 23. Rxc1 {[%emt 0:00:05]} Rxc2 {[%emt 0:00:14]} 24. Rxc2 {[%emt 0:00:05]} Ne1+ {[%emt 0:00:03]} 25. Kf1 {[%emt 0:00:07]} Nxc2 {[%emt 0:00:06]} 0-1

[Event "European Union U14-ch 2024"]
[Site "Roznov pod Radhostem"]
[Date "2024.08.05"]
[Round "1.2"]
[White "Stara, Zuzana"]
[Black "Barteckova, Nikol"]
[Result "1-0"]
[ECO "A52"]
[WhiteElo "2005"]
[BlackElo "1669"]
[Annotator "NA RC"]
[PlyCount "91"]
[EventDate "2024.08.02"]
[EventType "swiss"]
[EventCountry "CZE"]
[SourceTitle "playchess.com"]
[Source "ChessBase"]
[SourceQuality "1"]
[TimeControl "5400+30"]

1. d4 {[%emt 0:00:01]} Nf6 {[%emt 0:00:07]} 2. c4 {[%emt 0:00:04]} e5 {[%emt 0:00:10]} 3. dxe5 {[%emt 0:00:05]} Ng4 {[%emt 0:00:04]} 4. Bf4 {[%emt 0:00:07]} Bb4+ {[%emt 0:00:28]} 5. Nc3 {[%emt 0:00:15]} Bxc3+ {[%emt 0:00:37]} 6. bxc3 {[%emt 0:00:01]} Nc6 {[%emt 0:00:32]} 7. Nf3 {[%emt 0:00:08]} Qe7 {[%emt 0:00:57]} 8. Qd5 {[%emt 0:03:21]} f6 {[%emt 0:09:52]} 9. exf6 {[%emt 0:00:13]} Nxf6 {[%emt 0:00:22]} 10. Qd3 {[%emt 0:00:39]} d6 {[%emt 0:01:22]} 11. g3 {[%emt 0:03:16]} O-O {[%emt 0:05:29]} 12. Bg2 {[%emt 0:01:45]} Re8 {[%emt 0:01:46]} 13. Nd4 {[%emt 0:12:43]} Bd7 {[%emt 0:03:59]} 14. Rd1 {[%emt 0:27:10]} a6 {[%emt 0:20:43]} 15. Rd2 {[%emt 0:05:21]} Ne4 {[%emt 0:04:18]} 16. Bxe4 {[%emt 0:10:49]} Qxe4 {[%emt 0:00:07]} 17. Qxe4 {[%emt 0:00:27]} Rxe4 {[%emt 0:00:09]} 18. f3 {[%emt 0:01:27]} Ree8 {[%emt 0:00:47]} 19. Nxc6 {[%emt 0:04:51]} Bxc6 {[%emt 0:00:48]} 20. Kf2 {[%emt 0:00:44]} g6 {[%emt 0:06:44]} 21. e4 {[%emt 0:01:40]} Rf8 {[%emt 0:03:37]} 22. Ke3 {[%emt 0:03:47]} Rf7 {[%emt 0:02:16]} 23. Rd4 {[%emt 0:06:46]} Raf8 {[%emt 0:02:48]} 24. h4 {[%emt 0:01:10]} h6 {[%emt 0:02:27]} 25. Rf1 {[%emt 0:01:45]} Kg7 {[%emt 0:00:08]} 26. Ke2 {[%emt 0:00:48]} b5 {[%emt 0:00:28]} 27. cxb5 {[%emt 0:08:10]} Bxb5+ {[%emt 0:04:03]} 28. c4 {[%emt 0:00:07]} c5 {[%emt 0:00:39]} 29. Bxd6 {[%emt 0:00:27]} cxd4 {[%emt 0:01:27]} 30. Bxf8+ {[%emt 0:00:05]} Rxf8 {[%emt 0:00:10]} 31. cxb5 {[%emt 0:00:04]} axb5 {[%emt 0:00:13]} 32. Kd3 {[%emt 0:02:38]} Ra8 {[%emt 0:00:15]} 33. Rf2 {[%emt 0:00:23]} Ra4 {[%emt 0:00:13]} 34. Rb2 {[%emt 0:02:59]} b4 {[%emt 0:01:27]} 35. Rb3 {[%emt 0:01:02]} Rxa2 {[%emt 0:01:28]} 36. Kxd4 {[%emt 0:00:19]} Ra3 {[%emt 0:02:53]} 37. Rxa3 {[%emt 0:01:20]} bxa3 {[%emt 0:00:05]} 38. Kc3 {[%emt 0:00:02]} Kf6 {[%emt 0:00:04]} 39. f4 {[%emt 0:00:28]} h5 {[%emt 0:05:29]} 40. Kb3 {[%emt 0:00:16]} a2 {[%emt 0:00:12]} 41. Kxa2 {[%emt 0:00:04]} Ke6 {[%emt 0:00:24]} 42. Kb3 {[%emt 0:00:11]} Kd6 {[%emt 0:00:15]} 43. Kc4 {[%emt 0:00:06]} Kc6 {[%emt 0:00:13]} 44. e5 {[%emt 0:00:15]} Kd7 {[%emt 0:00:20]} 45. Kd5 {[%emt 0:00:10]} Ke7 {[%emt 0:00:03]} 46. e6 {[%emt 0:00:33]} 1-0

[Event "European Union U14-ch 2024"]
[Site "Roznov pod Radhostem"]
[Date "2024.08.05"]
[Round "1.3"]
[White "Madel, Luca"]
[Black "Constantinoiu, Alexandru Ioan"]
[Result "0-1"]
[ECO "D00"]
[WhiteElo "1628"]
[BlackElo "1904"]
[Annotator "NA RC"]
[PlyCount "62"]
[EventDate "2024.08.02"]
[EventType "swiss"]
[EventCountry "CZE"]
[SourceTitle "playchess.com"]
[Source "ChessBase"]
[SourceQuality "1"]
[TimeControl "5400+30"]

1. d4 {[%emt 0:00:07]} d5 {[%emt 0:00:24]} 2. Bf4 {[%emt 0:00:14]} c5 {[%emt 0:00:20]} 3. e3 {[%emt 0:00:56]} Nc6 {[%emt 0:00:48]} 4. c3 {[%emt 0:00:24]} Qb6 {[%emt 0:00:45]} 5. Qc2 {[%emt 0:00:31]} e5 {[%emt 0:03:42]} 6. Bxe5 {[%emt 0:05:07]} Nxe5 {[%emt 0:02:17]} 7. dxe5 {[%emt 0:07:02]} Ne7 {[%emt 0:06:03]} 8. Nf3 {[%emt 0:02:04]} g6 {[%emt 0:11:25]} 9. Qb3 {[%emt 0:01:54]} Qc7 {[%emt 0:05:24]} 10. Na3 {[%emt 0:02:09]} a6 {[%emt 0:05:52]} 11. c4 {[%emt 0:01:36]} Qa5+ {[%emt 0:05:01]} 12. Kd1 {[%emt 0:02:29]} Bd7 {[%emt 0:10:06]} 13. Qd3 {[%emt 0:03:19]} O-O-O {[%emt 0:04:38]} 14. Kc1 {[%emt 0:08:03]} Be6 {[%emt 0:09:54]} 15. Qc3 {[%emt 0:05:54]} Qc7 {[%emt 0:01:01]} 16. Be2 {[%emt 0:01:01]} d4 {[%emt 0:01:34]} 17. exd4 {[%emt 0:03:52]} cxd4 {[%emt 0:00:18]} 18. Nxd4 {[%emt 0:01:50]} Bh6+ {[%emt 0:00:41]} 19. Kb1 {[%emt 0:01:03]} Qxe5 {[%emt 0:02:00]} 20. Nxe6 {[%emt 0:00:29]} Qxe6 {[%emt 0:06:56]} 21. Bd3 {[%emt 0:01:46]} Rhe8 {[%emt 0:03:42]} 22. Kc2 {[%emt 0:02:23]} Nc6 {[%emt 0:03:20]} 23. Rae1 {[%emt 0:01:57]} Qd6 {[%emt 0:00:22]} 24. Rxe8 {[%emt 0:03:18]} Rxe8 {[%emt 0:02:33]} 25. c5 {[%emt 0:01:10]} Qf4 {[%emt 0:02:29]} 26. f3 {[%emt 0:08:08]} Qe3 {[%emt 0:07:00]} 27. Nc4 {[%emt 0:02:41]} Qxc5 {[%emt 0:00:33]} 28. Nd2 {[%emt 0:05:53]} Nb4+ {[%emt 0:00:28]} 29. Kb3 {[%emt 0:01:44]} Nxd3 {[%emt 0:00:21]} 30. Ne4 {[%emt 0:02:04]} Qxc3+ {[%emt 0:01:00]} 31. Kxc3 {[%emt 0:00:27]} Rd8 {[%emt 0:00:10]} 0-1

[Event "European Union U14-ch 2024"]
[Site "Roznov pod Radhostem"]
[Date "2024.08.05"]
[Round "1.4"]
[White "Michalska, Lena"]
[Black "Kincses, Emma"]
[Result "1-0"]
[ECO "D00"]
[WhiteElo "1837"]
[BlackElo "1618"]
[Annotator "NA RC"]
[PlyCount "47"]
[EventDate "2024.08.02"]
[EventType "swiss"]
[EventCountry "CZE"]
[SourceTitle "playchess.com"]
[Source "ChessBase"]
[SourceQuality "1"]
[TimeControl "5400+30"]

1. d4 {[%emt 0:00:01]} d5 {[%emt 0:00:06]} 2. Bf4 {[%emt 0:00:04]} Nf6 {[%emt 0:00:19]} 3. e3 {[%emt 0:00:07]} g6 {[%emt 0:00:07]} 4. Bd3 {[%emt 0:00:27]} Bg7 {[%emt 0:00:12]} 5. Nd2 {[%emt 0:00:18]} b6 {[%emt 0:00:36]} 6. Ngf3 {[%emt 0:01:30]} Bb7 {[%emt 0:00:21]} 7. h4 {[%emt 0:00:18]} Nbd7 {[%emt 0:00:38]} 8. Qe2 {[%emt 0:02:34]} c5 {[%emt 0:01:06]} 9. c3 {[%emt 0:00:08]} O-O {[%emt 0:01:43]} 10. Ne5 {[%emt 0:09:45]} Nh5 {[%emt 0:11:35]} 11. Qg4 {[%emt 0:07:07]} Nxf4 {[%emt 0:02:22]} 12. exf4 {[%emt 0:01:25]} Nf6 {[%emt 0:04:43]} 13. Qf3 {[%emt 0:01:07]} cxd4 {[%emt 0:06:06]} 14. cxd4 {[%emt 0:00:09]} Qd6 {[%emt 0:01:55]} 15. a3 {[%emt 0:19:02]} Rad8 {[%emt 0:15:42]} 16. Rd1 {[%emt 0:06:36]} Nd7 {[%emt 0:06:16]} 17. h5 {[%emt 0:02:35]} Qe6 {[%emt 0:12:39]} 18. hxg6 {[%emt 0:07:32]} fxg6 {[%emt 0:00:57]} 19. Qg3 {[%emt 0:01:09]} Nxe5 {[%emt 0:02:59]} 20. fxe5 {[%emt 0:00:41]} Qf7 {[%emt 0:00:58]} 21. Nf3 {[%emt 0:03:20]} Bc8 {[%emt 0:02:40]} 22. Rxh7 {[%emt 0:05:19]} Qf4 {[%emt 0:04:01]} 23. Rxg7+ {[%emt 0:03:21]} Kh8 {[%emt 0:01:28]} 24. Rh7+ {[%emt 0:00:07]} 1-0

[Event "European Union U14-ch 2024"]
[Site "Roznov pod Radhostem"]
[Date "2024.08.05"]
[Round "1.5"]
[White "Pritulina, Nadezhda"]
[Black "Bartova, Hana"]
[Result "1/2-1/2"]
[ECO "A00"]
[WhiteElo "1589"]
[BlackElo "1796"]
[Annotator "NA RC"]
[PlyCount "144"]
[EventDate "2024.08.02"]
[EventType "swiss"]
[EventCountry "CZE"]
[SourceTitle "playchess.com"]
[Source "ChessBase"]
[SourceQuality "1"]
[TimeControl "5400+30"]

1. b4 {[%emt 0:00:01]} d5 {[%emt 0:02:29]} 2. Bb2 {[%emt 0:00:06]} Nf6 {[%emt 0:00:15]} 3. e3 {[%emt 0:00:10]} Bf5 {[%emt 0:01:29]} 4. Nf3 {[%emt 0:03:11]} e6 {[%emt 0:02:07]} 5. a3 {[%emt 0:00:17]} Nbd7 {[%emt 0:11:08]} 6. d4 {[%emt 0:07:25]} Be7 {[%emt 0:06:39]} 7. Nbd2 {[%emt 0:02:18]} Ne4 {[%emt 0:05:43]} 8. c4 {[%emt 0:01:04]} dxc4 {[%emt 0:10:12]} 9. Bxc4 {[%emt 0:00:26]} Nb6 {[%emt 0:10:12]} 10. Bd3 {[%emt 0:07:10]} Nxd2 {[%emt 0:01:44]} 11. Qxd2 {[%emt 0:00:11]} Qd5 {[%emt 0:00:44]} 12. Qc2 {[%emt 0:09:45]} Bxd3 {[%emt 0:02:41]} 13. Qxd3 {[%emt 0:00:09]} Qc4 {[%emt 0:00:44]} 14. Qe4 {[%emt 0:08:05]} Qd5 {[%emt 0:05:22]} 15. Qg4 {[%emt 0:00:34]} O-O {[%emt 0:01:34]} 16. e4 {[%emt 0:00:23]} Qb3 {[%emt 0:00:59]} 17. Rb1 {[%emt 0:00:11]} Nc4 {[%emt 0:02:23]} 18. Nd2 {[%emt 0:06:16]} Qd3 {[%emt 0:04:39]} 19. Qe2 {[%emt 0:00:23]} Nxb2 {[%emt 0:00:38]} 20. Rxb2 {[%emt 0:05:41]} Qxa3 {[%emt 0:01:33]} 21. Nb1 {[%emt 0:00:16]} Qa4 {[%emt 0:06:27]} 22. Qd2 {[%emt 0:04:27]} Rfd8 {[%emt 0:02:30]} 23. Nc3 {[%emt 0:02:30]} Qc6 {[%emt 0:00:45]} 24. b5 {[%emt 0:00:42]} Qc4 {[%emt 0:01:46]} 25. Ne2 {[%emt 0:02:09]} Ba3 {[%emt 0:06:06]} 26. Rb1 {[%emt 0:03:14]} e5 {[%emt 0:02:20]} 27. O-O {[%emt 0:05:22]} exd4 {[%emt 0:02:19]} 28. Rfd1 {[%emt 0:03:05]} Qe6 {[%emt 0:04:10]} 29. Nxd4 {[%emt 0:00:40]} Qxe4 {[%emt 0:01:21]} 30. Qc3 {[%emt 0:00:13]} Bd6 {[%emt 0:00:38]} 31. Re1 {[%emt 0:00:30]} Qf4 {[%emt 0:03:19]} 32. g3 {[%emt 0:01:39]} Qf6 {[%emt 0:00:10]} 33. Qc4 {[%emt 0:00:46]} Re8 {[%emt 0:00:29]} 34. Qd5 {[%emt 0:01:19]} Rad8 {[%emt 0:01:02]} 35. Nf5 {[%emt 0:04:10]} Re5 {[%emt 0:00:40]} 36. Rxe5 {[%emt 0:02:07]} Qxe5 {[%emt 0:00:02]} 37. Qf3 {[%emt 0:00:17]} Bc5 {[%emt 0:00:54]} 38. h4 {[%emt 0:02:07]} Rd2 {[%emt 0:00:34]} 39. Rf1 {[%emt 0:02:16]} Rd5 {[%emt 0:00:25]} 40. Ne3 {[%emt 0:00:36]} Bxe3 {[%emt 0:00:22]} 41. fxe3 {[%emt 0:00:05]} Qe6 {[%emt 0:00:13]} 42. Qe2 {[%emt 0:02:05]} Qe5 {[%emt 0:00:38]} 43. Qf3 {[%emt 0:00:11]} Qe6 {[%emt 0:00:15]} 44. Qe2 {[%emt 0:00:06]} Re5 {[%emt 0:00:52]} 45. Rd1 {[%emt 0:02:43]} Rd5 {[%emt 0:00:40]} 46. Rf1 {[%emt 0:00:07]} f6 {[%emt 0:00:43]} 47. Re1 {[%emt 0:04:21]} Rd6 {[%emt 0:00:06]} 48. Qc2 {[%emt 0:01:11]} c6 {[%emt 0:00:29]} 49. bxc6 {[%emt 0:00:27]} Rxc6 {[%emt 0:00:06]} 50. Qd2 {[%emt 0:00:53]} Rd6 {[%emt 0:00:51]} 51. Qa5 {[%emt 0:01:37]} a6 {[%emt 0:00:54]} 52. Qc7 {[%emt 0:00:10]} Qd7 {[%emt 0:00:17]} 53. Qc4+ {[%emt 0:00:26]} Kf8 {[%emt 0:00:08]} 54. Qc5 {[%emt 0:00:13]} Qc6 {[%emt 0:00:28]} 55. Qb4 {[%emt 0:00:30]} Kf7 {[%emt 0:00:37]} 56. Qb3+ {[%emt 0:01:37]} Qd5 {[%emt 0:00:08]} 57. Qc3 {[%emt 0:00:59]} Rc6 {[%emt 0:00:35]} 58. Qb4 {[%emt 0:01:24]} Qc5 {[%emt 0:01:11]} 59. Qxb7+ {[%emt 0:00:13]} Kg6 {[%emt 0:00:29]} 60. Qb1+ {[%emt 0:01:06]} Qc2 {[%emt 0:00:25]} 61. Qxc2+ {[%emt 0:02:30]} Rxc2 {[%emt 0:00:01]} 62. Ra1 {[%emt 0:00:14]} Rc6 {[%emt 0:00:10]} 63. Kf2 {[%emt 0:00:05]} Kf5 {[%emt 0:00:14]} 64. Kf3 {[%emt 0:00:30]} Ke5 {[%emt 0:00:30]} 65. g4 {[%emt 0:02:39]} Kd5 {[%emt 0:00:21]} 66. g5 {[%emt 0:00:26]} fxg5 {[%emt 0:00:21]} 67. hxg5 {[%emt 0:00:04]} Ke5 {[%emt 0:01:19]} 68. Ra5+ {[%emt 0:00:46]} Kd6 {[%emt 0:00:32]} 69. e4 {[%emt 0:00:53]} Kc7 {[%emt 0:00:40]} 70. e5 {[%emt 0:01:09]} Kb6 {[%emt 0:00:36]} 71. Ra1 {[%emt 0:00:15]} Rc4 {[%emt 0:01:00]} 72. e6 {[%emt 0:01:59]} Kc7 {[%emt 0:00:30]} 1/2-1/2

[Event "European Union U14-ch 2024"]
[Site "Roznov pod Radhostem"]
[Date "2024.08.05"]
[Round "1.6"]
[White "Boros, David"]
[Black "Ochkova, Maria"]
[Result "1-0"]
[ECO "C58"]
[WhiteElo "1796"]
[BlackElo "1553"]
[Annotator "NA RC"]
[PlyCount "93"]
[EventDate "2024.08.02"]
[EventType "swiss"]
[EventCountry "CZE"]
[SourceTitle "playchess.com"]
[Source "ChessBase"]
[SourceQuality "1"]
[TimeControl "5400+30"]

1. e4 {[%emt 0:00:02]} e5 {[%emt 0:00:05]} 2. Nf3 {[%emt 0:00:17]} Nc6 {[%emt 0:00:16]} 3. Bc4 {[%emt 0:00:43]} Nf6 {[%emt 0:00:09]} 4. Ng5 {[%emt 0:03:19]} d5 {[%emt 0:00:11]} 5. exd5 {[%emt 0:00:12]} Na5 {[%emt 0:00:06]} 6. Bb5+ {[%emt 0:01:14]} c6 {[%emt 0:00:07]} 7. dxc6 {[%emt 0:00:17]} bxc6 {[%emt 0:00:06]} 8. Qf3 {[%emt 0:10:16]} Rb8 {[%emt 0:00:26]} 9. Bxc6+ {[%emt 0:02:21]} Nxc6 {[%emt 0:00:04]} 10. Qxc6+ {[%emt 0:00:16]} Bd7 {[%emt 0:00:09]} 11. Qc4 {[%emt 0:02:55]} Qe7 {[%emt 0:02:03]} 12. Nc3 {[%emt 0:12:09]} h6 {[%emt 0:01:13]} 13. Nge4 {[%emt 0:06:57]} Nxe4 {[%emt 0:07:17]} 14. Qxe4 {[%emt 0:03:03]} f5 {[%emt 0:01:07]} 15. Qe2 {[%emt 0:03:33]} g6 {[%emt 0:06:28]} 16. Qa6 {[%emt 0:05:21]} Qd6 {[%emt 0:03:42]} 17. Qxd6 {[%emt 0:04:23]} Bxd6 {[%emt 0:00:07]} 18. b3 {[%emt 0:02:06]} a5 {[%emt 0:03:28]} 19. Bb2 {[%emt 0:03:37]} a4 {[%emt 0:01:26]} 20. O-O-O {[%emt 0:02:03]} a3 {[%emt 0:00:52]} 21. Ba1 {[%emt 0:00:13]} O-O {[%emt 0:00:37]} 22. Nd5 {[%emt 0:07:04]} Kh7 {[%emt 0:03:53]} 23. f4 {[%emt 0:02:13]} Bc6 {[%emt 0:07:53]} 24. fxe5 {[%emt 0:04:38]} Bxd5 {[%emt 0:01:00]} 25. exd6 {[%emt 0:00:40]} Bxg2 {[%emt 0:00:06]} 26. Rhe1 {[%emt 0:02:49]} Rfe8 {[%emt 0:00:36]} 27. Re7+ {[%emt 0:02:08]} Rxe7 {[%emt 0:00:57]} 28. dxe7 {[%emt 0:00:02]} Re8 {[%emt 0:00:48]} 29. Re1 {[%emt 0:01:30]} f4 {[%emt 0:00:59]} 30. Bd4 {[%emt 0:02:15]} g5 {[%emt 0:05:27]} 31. Re6 {[%emt 0:02:35]} f3 {[%emt 0:03:19]} 32. Kd1 {[%emt 0:00:36]} Bh3 {[%emt 0:01:01]} 33. Re5 {[%emt 0:03:39]} Kg6 {[%emt 0:04:01]} 34. Ke1 {[%emt 0:01:01]} Bd7 {[%emt 0:05:12]} 35. Bc5 {[%emt 0:02:04]} g4 {[%emt 0:02:03]} 36. Rd5 {[%emt 0:01:26]} Be6 {[%emt 0:01:29]} 37. Rd8 {[%emt 0:01:49]} Bf7 {[%emt 0:01:04]} 38. Rxe8 {[%emt 0:00:43]} Bxe8 {[%emt 0:00:08]} 39. Bxa3 {[%emt 0:01:30]} h5 {[%emt 0:00:23]} 40. Bd6 {[%emt 0:01:30]} h4 {[%emt 0:00:48]} 41. a4 {[%emt 0:00:45]} g3 {[%emt 0:00:19]} 42. hxg3 {[%emt 0:02:54]} h3 {[%emt 0:00:14]} 43. g4 {[%emt 0:00:16]} Kg5 {[%emt 0:00:43]} 44. a5 {[%emt 0:00:25]} Kxg4 {[%emt 0:00:19]} 45. a6 {[%emt 0:00:09]} h2 {[%emt 0:00:11]} 46. Bxh2 {[%emt 0:00:14]} Kh3 {[%emt 0:00:03]} 47. Bg1 {[%emt 0:00:32]} 1-0

[Event "European Union U14-ch 2024"]
[Site "Roznov pod Radhostem"]
[Date "2024.08.05"]
[Round "1.7"]
[White "Myronova, Sofia"]
[Black "Belocky, Daniel"]
[Result "0-1"]
[ECO "C00"]
[WhiteElo "1463"]
[BlackElo "1731"]
[Annotator "NA RC"]
[PlyCount "110"]
[EventDate "2024.08.02"]
[EventType "swiss"]
[EventCountry "CZE"]
[SourceTitle "playchess.com"]
[Source "ChessBase"]
[SourceQuality "1"]
[TimeControl "5400+30"]

1. e4 {[%emt 0:00:06]} e6 {[%emt 0:00:02]} 2. Nc3 {[%emt 0:00:20]} d5 {[%emt 0:00:03]} 3. exd5 {[%emt 0:00:19]} exd5 {[%emt 0:00:03]} 4. d4 {[%emt 0:00:26]} Nc6 {[%emt 0:00:02]} 5. Nf3 {[%emt 0:00:35]} Bg4 {[%emt 0:00:03]} 6. Be2 {[%emt 0:02:05]} Qd7 {[%emt 0:00:14]} 7. Bf4 {[%emt 0:01:37]} f6 {[%emt 0:00:12]} 8. Qd2 {[%emt 0:00:50]} g5 {[%emt 0:00:18]} 9. Be3 {[%emt 0:00:26]} h6 {[%emt 0:00:20]} 10. h3 {[%emt 0:01:32]} Be6 {[%emt 0:00:24]} 11. g4 {[%emt 0:04:16]} O-O-O {[%emt 0:00:47]} 12. O-O-O {[%emt 0:00:31]} Bg7 {[%emt 0:00:39]} 13. Bb5 {[%emt 0:05:52]} h5 {[%emt 0:00:39]} 14. Nh2 {[%emt 0:02:31]} hxg4 {[%emt 0:01:57]} 15. hxg4 {[%emt 0:01:12]} Nge7 {[%emt 0:00:29]} 16. f3 {[%emt 0:01:09]} Rh3 {[%emt 0:00:40]} 17. Qg2 {[%emt 0:02:05]} Rdh8 {[%emt 0:00:11]} 18. Rdg1 {[%emt 0:00:16]} Ng6 {[%emt 0:01:01]} 19. Be2 {[%emt 0:04:53]} Bf7 {[%emt 0:03:14]} 20. Nf1 {[%emt 0:05:05]} Rxh1 {[%emt 0:00:09]} 21. Rxh1 {[%emt 0:00:06]} Nh4 {[%emt 0:00:04]} 22. Qf2 {[%emt 0:01:07]} Re8 {[%emt 0:01:39]} 23. Bd2 {[%emt 0:02:13]} a6 {[%emt 0:01:43]} 24. Ng3 {[%emt 0:02:15]} Kb8 {[%emt 0:05:05]} 25. Re1 {[%emt 0:01:50]} Bg6 {[%emt 0:03:36]} 26. a3 {[%emt 0:02:11]} Bf7 {[%emt 0:05:41]} 27. Na4 {[%emt 0:07:58]} f5 {[%emt 0:05:39]} 28. Bxg5 {[%emt 0:02:11]} Bxd4 {[%emt 0:00:05]} 29. Qf1 {[%emt 0:01:20]} Be3+ {[%emt 0:00:16]} 30. Bxe3 Rxe3 {[%emt 0:00:09]} 31. Qf2 {[%emt 0:01:01]} Re8 {[%emt 0:02:05]} 32. Nc3 {[%emt 0:00:34]} fxg4 {[%emt 0:03:29]} 33. fxg4 {[%emt 0:01:08]} Ne5 {[%emt 0:02:15]} 34. Nh5 {[%emt 0:02:56]} Qe7 {[%emt 0:04:20]} 35. Kb1 {[%emt 0:06:04]} Nxg4 {[%emt 0:00:52]} 36. Qg3 {[%emt 0:06:47]} Bxh5 {[%emt 0:04:09]} 37. Nxd5 {[%emt 0:00:27]} Qd8 {[%emt 0:01:01]} 38. Nf4 {[%emt 0:00:39]} Re3 {[%emt 0:01:50]} 39. Qg1 {[%emt 0:02:14]} Qg5 {[%emt 0:01:15]} 40. Bxg4 {[%emt 0:00:33]} Rxe1+ {[%emt 0:00:14]} 41. Qxe1 {[%emt 0:00:52]} Bxg4 {[%emt 0:00:30]} 42. Nd3 {[%emt 0:00:56]} Nf3 {[%emt 0:00:19]} 43. Qe8+ {[%emt 0:01:54]} Ka7 {[%emt 0:00:33]} 44. Qa4 {[%emt 0:02:02]} Nd2+ {[%emt 0:00:49]} 45. Ka2 Qd5+ {[%emt 0:00:17]} 46. b3 {[%emt 0:02:00]} Ne4 {[%emt 0:00:55]} 47. Qb4 {[%emt 0:03:02]} a5 {[%emt 0:00:58]} 48. Qe1 {[%emt 0:00:55]} a4 {[%emt 0:00:14]} 49. Qg1+ {[%emt 0:00:48]} b6 {[%emt 0:00:03]} 50. Nb4 {[%emt 0:01:57]} axb3+ {[%emt 0:00:09]} 51. Kb1 {[%emt 0:01:51]} bxc2+ {[%emt 0:01:32]} 52. Kxc2 {[%emt 0:03:24]} Qc4+ {[%emt 0:00:52]} 53. Kb1 {[%emt 0:00:45]} Nd2+ {[%emt 0:00:27]} 54. Ka1 {[%emt 0:03:54]} Qc3+ {[%emt 0:00:16]} 55. Ka2 {[%emt 0:00:20]} Be6+ {[%emt 0:00:03]} 0-1

[Event "European Union U14-ch 2024"]
[Site "Roznov pod Radhostem"]
[Date "2024.08.06"]
[Round "2.1"]
[White "Bocquenet-Drouode, Hugo"]
[Black "Michalska, Lena"]
[Result "1-0"]
[ECO "B07"]
[WhiteElo "2025"]
[BlackElo "1837"]
[Annotator "NA RC"]
[PlyCount "71"]
[EventDate "2024.08.02"]
[EventType "swiss"]
[EventCountry "CZE"]
[SourceTitle "playchess.com"]
[Source "ChessBase"]
[SourceQuality "1"]
[TimeControl "5400+30"]

1. d4 {[%emt 0:00:05]} Nf6 {[%emt 0:00:03]} 2. Nc3 {[%emt 0:00:06]} g6 {[%emt 0:00:04]} 3. e4 {[%emt 0:00:04]} d6 {[%emt 0:00:03]} 4. Bf4 {[%emt 0:00:36]} Bg7 {[%emt 0:00:05]} 5. Qd2 {[%emt 0:00:16]} Nc6 {[%emt 0:00:05]} 6. O-O-O {[%emt 0:18:33]} O-O {[%emt 0:00:53]} 7. f3 {[%emt 0:02:37]} Re8 {[%emt 0:04:11]} 8. Bh6 {[%emt 0:04:32]} Bh8 {[%emt 0:00:07]} 9. h4 {[%emt 0:00:56]} a6 {[%emt 0:11:37]} 10. h5 {[%emt 0:10:52]} e5 {[%emt 0:07:22]} 11. hxg6 {[%emt 0:05:57]} hxg6 {[%emt 0:00:17]} 12. d5 {[%emt 0:00:19]} Nb8 {[%emt 0:00:30]} 13. g4 {[%emt 0:04:45]} Nbd7 {[%emt 0:04:43]} 14. Qh2 {[%emt 0:02:22]} b5 {[%emt 0:04:03]} 15. Nce2 {[%emt 0:01:55]} Nh7 {[%emt 0:19:28]} 16. Be3 {[%emt 0:01:46]} Ndf8 {[%emt 0:00:12]} 17. Ng3 {[%emt 0:06:45]} Bd7 {[%emt 0:03:56]} 18. Bd3 {[%emt 0:01:22]} Qf6 {[%emt 0:00:39]} 19. Rf1 {[%emt 0:03:09]} b4 {[%emt 0:02:02]} 20. Kb1 {[%emt 0:01:34]} a5 {[%emt 0:01:19]} 21. Nh3 {[%emt 0:03:54]} Bg7 {[%emt 0:04:20]} 22. Qd2 {[%emt 0:10:35]} Reb8 {[%emt 0:07:06]} 23. Ng5 {[%emt 0:00:52]} Qd8 {[%emt 0:01:52]} 24. Nxh7 {[%emt 0:01:20]} Nxh7 {[%emt 0:00:06]} 25. Qh2 {[%emt 0:05:55]} Nf6 {[%emt 0:02:53]} 26. Bh6 {[%emt 0:01:17]} Qf8 {[%emt 0:00:22]} 27. Bxg7 {[%emt 0:00:41]} Qxg7 {[%emt 0:00:06]} 28. Bc4 {[%emt 0:07:52]} g5 {[%emt 0:09:48]} 29. Rfg1 {[%emt 0:02:02]} Nh7 {[%emt 0:00:47]} 30. Qd2 {[%emt 0:00:39]} f6 {[%emt 0:01:08]} 31. Rh3 {[%emt 0:01:13]} Nf8 {[%emt 0:10:08]} 32. Rgh1 {[%emt 0:00:09]} Ng6 {[%emt 0:00:09]} 33. Rh6 {[%emt 0:00:58]} Nh4 {[%emt 0:00:21]} 34. R1xh4 {[%emt 0:00:07]} gxh4 {[%emt 0:00:06]} 35. Nh5 {[%emt 0:00:07]} Qxh6 {[%emt 0:06:09]} 36. Qxh6 {[%emt 0:00:08]} 1-0